fUSD/lending_fUSD_20250206
["ID","MTS","AMOUNT","RATE_DAILY","PERIOD"]
[351886272,1738828333873,-1035.82,0.00020259,3]
[351886273,1738828333883,-1035.82,0.00020259,3]
[351886274,1738828333892,-1036.0,0.00020259,3]
[351886275,1738828333902,-1530.95,0.00020259,3]
[351886276,1738828333912,-1530.95,0.00020259,3]
[351886277,1738828333921,-1530.95,0.00020259,3]
[351886278,1738828333930,-958.23,0.00020259,3]
[351886279,1738828333941,-958.23,0.00020259,3]
[351886280,1738828333951,-958.23,0.00020259,3]
[351886281,1738828333964,-1231.08,0.00020259,3]
[351886282,1738828333976,-1231.08,0.00020259,3]
[351886283,1738828333986,-1231.08,0.00020259,3]
[351886284,1738828333996,-1407.85,0.00020259,3]
[351886285,1738828334006,-1407.85,0.00020259,3]
[351886286,1738828334017,-1407.85,0.00020259,3]
[351886287,1738828334027,-500.0,0.00020259,3]
[351886288,1738828334038,-500.0,0.00020259,3]
[351886289,1738828334047,-500.0,0.00020259,3]
[351886290,1738828334057,-1184.3,0.00020259,3]
[351886291,1738828334067,-1184.3,0.00020259,3]
[351886292,1738828334079,-1184.3,0.00020259,3]
[351886293,1738828334090,-1634.32,0.00020259,3]
[351886294,1738828334110,-1634.32,0.00020259,3]
[351886295,1738828334120,-1634.32,0.00020259,3]
[351886296,1738828334130,-1638.97,0.00020259,3]
[351886297,1738828334140,-1638.97,0.00020259,3]
[351886298,1738828334149,-1638.97,0.00020259,3]
[351886299,1738828334163,-1026.8,0.00020259,3]
[351886300,1738828334174,-1026.8,0.00020259,3]
[351886301,1738828334183,-1026.8,0.00020259,3]
[351886302,1738828334193,-1498.7,0.00020259,3]
[351886303,1738828334203,-1498.7,0.00020259,3]
[351886304,1738828334215,-1498.7,0.00020259,3]
[351886305,1738828334225,-1098.98,0.00020259,3]
[351886306,1738828334235,-1098.98,0.00020259,3]
[351886307,1738828334245,-1098.98,0.00020259,3]
[351886308,1738828334256,-1368.78,0.00020259,3]
[351886309,1738828334265,-1368.78,0.00020259,3]
[351886310,1738828334275,-1368.78,0.00020259,3]
[351886311,1738828334285,-151.0,0.0002026,2]
[351886312,1738828334295,-542.48,0.0002026,3]
[351886313,1738828334305,-542.48,0.0002026,3]
[351886314,1738828334314,-542.48,0.0002026,3]
[351886315,1738828334324,-542.48,0.0002026,3]
[351886316,1738828334334,-542.48,0.0002026,3]
[351886317,1738828334343,-542.48,0.0002026,3]
[351886318,1738828334353,-542.48,0.0002026,3]
[351886319,1738828334362,-542.48,0.0002026,3]
[351886320,1738828334372,-542.48,0.0002026,3]
[351886321,1738828334381,-542.48,0.0002026,3]
[351886322,1738828334391,-542.48,0.0002026,3]
[351886323,1738828334400,-542.48,0.0002026,3]
[351886324,1738828334410,-542.48,0.0002026,3]
[351886325,1738828334419,-542.48,0.0002026,3]
[351886326,1738828334429,-542.48,0.0002026,3]
[351886327,1738828334439,-542.48,0.0002026,3]
[351886328,1738828334449,-542.48926316,0.0002026,3]
[351886329,1738828334458,-500.0,0.0002026,3]
[351886330,1738828334471,-500.0,0.0002026,3]
[351886331,1738828334481,-500.0,0.0002026,3]
[351886332,1738828334491,-500.0,0.0002026,3]
[351886333,1738828334500,-500.0,0.0002026,3]
[351886334,1738828334510,-500.0,0.0002026,3]
[351886335,1738828334519,-598.69,0.0002026,3]
[351886336,1738828334530,-151.0,0.0002026,2]
[351886337,1738828334540,-151.0,0.0002026,2]
[351886338,1738828334550,-527.83,0.0002026,3]
[351886339,1738828334561,-527.83,0.0002026,3]
[351886340,1738828334571,-527.83,0.0002026,3]
[351886341,1738828334580,-527.83,0.0002026,3]
[351886342,1738828334590,-527.83,0.0002026,3]
[351886343,1738828334600,-527.83,0.0002026,3]
[351886344,1738828334610,-527.83,0.0002026,3]
[351886345,1738828334620,-527.83,0.0002026,3]
[351886346,1738828334629,-527.83,0.0002026,3]
[351886347,1738828334639,-527.83,0.0002026,3]
[351886348,1738828334650,-527.83,0.0002026,3]
[351886349,1738828334660,-527.83,0.0002026,3]
[351886350,1738828334670,-527.83,0.0002026,3]
[351886351,1738828334679,-527.83,0.0002026,3]
[351886352,1738828334690,-527.83,0.0002026,3]
[351886353,1738828334699,-527.83,0.0002026,3]
[351886354,1738828334709,-527.93,0.0002026,3]
[351886355,1738828334721,-500.0,0.0002026,3]
[351886356,1738828334731,-500.0,0.0002026,3]
[351886357,1738828334741,-500.0,0.0002026,3]
[351886358,1738828334751,-500.0,0.0002026,3]
[351886359,1738828334761,-500.0,0.0002026,3]
[351886360,1738828334771,-500.0,0.0002026,3]
[351886361,1738828334781,-500.0,0.0002026,3]
[351886362,1738828334791,-500.0,0.0002026,3]
[351886363,1738828334800,-500.0,0.0002026,3]
[351886364,1738828334810,-500.0,0.0002026,3]
[351886365,1738828334820,-500.0,0.0002026,3]
[351886366,1738828334830,-500.0,0.0002026,3]
[351886367,1738828334839,-500.0,0.0002026,3]
[351886368,1738828334848,-500.0,0.0002026,3]
[351886369,1738828334858,-500.0,0.0002026,3]
[351886370,1738828334869,-500.0,0.0002026,3]
[351886371,1738828334879,-296.19,0.0002026,3]
[351886372,1738828334889,-566.87,0.0002026,3]
[351886373,1738828334900,-566.87,0.0002026,3]
[351886374,1738828334910,-566.87,0.0002026,3]
[351886375,1738828334920,-566.87,0.0002026,3]
[351886376,1738828334930,-566.87,0.0002026,3]
[351886377,1738828334940,-566.87,0.0002026,3]
[351886378,1738828334950,-566.87,0.0002026,3]
[351886379,1738828334962,-566.87,0.0002026,3]
[351886380,1738828334972,-566.87,0.0002026,3]
[351886381,1738828334982,-566.87,0.0002026,3]
[351886382,1738828334992,-566.87,0.0002026,3]
[351886383,1738828335002,-566.87,0.0002026,3]
[351886384,1738828335011,-566.87,0.0002026,3]
[351886385,1738828335021,-566.87,0.0002026,3]
[351886386,1738828335031,-566.87,0.0002026,3]
[351886387,1738828335042,-566.87,0.0002026,3]
[351886388,1738828335052,-567.07,0.0002026,3]
[351886389,1738828335062,-685.75,0.0002026,3]
[351886390,1738828335076,-685.75,0.0002026,3]
[351886391,1738828335086,-685.75,0.0002026,3]
[351886392,1738828335096,-685.75,0.0002026,3]
[351886393,1738828335106,-685.75,0.0002026,3]
[351886394,1738828335117,-685.75,0.0002026,3]
[351886395,1738828335127,-685.75,0.0002026,3]
[351886396,1738828335136,-685.75,0.0002026,3]
[351886397,1738828335146,-685.75,0.0002026,3]
[351886398,1738828335156,-685.75,0.0002026,3]
[351886399,1738828335166,-685.75,0.0002026,3]
[351886400,1738828335176,-685.75,0.0002026,3]
[351886401,1738828335186,-685.75,0.0002026,3]
[351886402,1738828335195,-685.75,0.0002026,3]
[351886403,1738828335204,-685.75,0.0002026,3]
[351886404,1738828335214,-685.75,0.0002026,3]
[351886405,1738828335224,-685.80538735,0.0002026,3]
[351886406,1738828335234,-500.0,0.0002026,3]
[351886407,1738828335244,-500.0,0.0002026,3]
[351886408,1738828335254,-605.7,0.0002026,3]
[351886409,1738828335264,-500.0,0.0002026,3]
[351886410,1738828335275,-500.0,0.0002026,3]
[351886411,1738828335284,-500.0,0.0002026,3]
[351886412,1738828335295,-500.0,0.0002026,3]
[351886413,1738828335306,-500.0,0.0002026,3]
[351886414,1738828335316,-500.0,0.0002026,3]
[351886415,1738828335327,-500.0,0.0002026,3]
[351886416,1738828335338,-500.0,0.0002026,3]
[351886417,1738828335348,-500.0,0.0002026,3]
[351886418,1738828335359,-500.0,0.0002026,3]
[351886419,1738828335369,-500.0,0.0002026,3]
[351886420,1738828335379,-500.0,0.0002026,3]
[351886421,1738828335390,-500.0,0.0002026,3]
[351886422,1738828335400,-500.0,0.0002026,3]
[351886423,1738828335409,-500.0,0.0002026,3]
[351886424,1738828335418,-500.0,0.0002026,3]
[351886425,1738828335428,-253.28359629,0.0002026,3]
[351886426,1738828335438,-500.0,0.0002026,3]
[351886427,1738828335448,-500.0,0.0002026,3]
[351886428,1738828335458,-500.0,0.0002026,3]
[351886429,1738828335470,-500.0,0.0002026,3]
[351886430,1738828335480,-500.0,0.0002026,3]
[351886431,1738828335491,-500.0,0.0002026,3]
[351886432,1738828335502,-500.0,0.0002026,3]
[351886433,1738828335513,-500.0,0.0002026,3]
[351886434,1738828335523,-500.0,0.0002026,3]
[351886435,1738828335533,-500.0,0.0002026,3]
[351886436,1738828335543,-500.0,0.0002026,3]
[351886437,1738828335552,-375.39368476,0.0002026,3]
[351886438,1738828335564,-500.0,0.0002026,3]
[351886439,1738828335575,-500.0,0.0002026,3]
[351886440,1738828335586,-500.0,0.0002026,3]
[351886441,1738828335596,-463.01751372,0.0002026,3]
[351886442,1738828335606,-540.0,0.0002026,3]
[351886443,1738828335617,-540.0,0.0002026,3]
[351886444,1738828335628,-540.0,0.0002026,3]
[351886445,1738828335639,-540.0,0.0002026,3]
[351886446,1738828335649,-540.0,0.0002026,3]
[351886447,1738828335660,-540.0,0.0002026,3]
[351886448,1738828335670,-540.0,0.0002026,3]
[351886449,1738828335680,-540.0,0.0002026,3]
[351886450,1738828335691,-540.0,0.0002026,3]
[351886451,1738828335701,-540.0,0.0002026,3]
[351886452,1738828335712,-540.0,0.0002026,3]
[351886453,1738828335723,-540.0,0.0002026,3]
[351886454,1738828335733,-540.0,0.0002026,3]
[351886455,1738828335743,-540.0,0.0002026,3]
[351886456,1738828335754,-540.0,0.0002026,3]
[351886457,1738828335764,-540.0,0.0002026,3]
[351886458,1738828335775,-540.19,0.0002026,3]
[351886459,1738828335786,-500.0,0.0002026,3]
[351886460,1738828335797,-500.0,0.0002026,3]
[351886461,1738828335807,-500.0,0.0002026,3]
[351886462,1738828335818,-500.0,0.0002026,3]
[351886463,1738828335828,-500.0,0.0002026,3]
[351886464,1738828335839,-500.0,0.0002026,3]
[351886465,1738828335849,-531.42598507,0.0002026,3]
[351886466,1738828335859,-657.45,0.0002026,3]
[351886467,1738828335871,-657.45,0.0002026,3]
[351886468,1738828335881,-657.45,0.0002026,3]
[351886469,1738828335892,-657.45,0.0002026,3]
[351886470,1738828335902,-657.45,0.0002026,3]
[351886471,1738828335913,-657.45,0.0002026,3]
[351886472,1738828335923,-657.45,0.0002026,3]
[351886473,1738828335934,-657.45,0.0002026,3]
[351886474,1738828335945,-657.45,0.0002026,3]
[351886475,1738828335955,-657.45,0.0002026,3]
[351886476,1738828335967,-657.45,0.0002026,3]
[351886477,1738828335977,-657.45,0.0002026,3]
[351886478,1738828335987,-657.45,0.0002026,3]
[351886479,1738828336184,-657.45,0.0002026,3]
[351886480,1738828336194,-657.45,0.0002026,3]
[351886481,1738828336204,-657.45,0.0002026,3]
[351886482,1738828336213,-657.68058523,0.0002026,3]
[351886483,1738828336223,-151.0,0.0002026,2]
[351886484,1738828336233,-1000.0,0.00020273,7]
[351886485,1738828336242,-20678.31110921,0.00020274,2]
[351886486,1738828336253,-93245.09048143,0.00020274,2]
[351886487,1738828336262,-150.0,0.00020275,3]
[351886488,1738828336271,-500.0,0.00020275,3]
[351886489,1738828336281,-150.0,0.00020275,3]
[351886490,1738828336290,-150.0,0.00020275,2]
[351886491,1738828336300,-500.0,0.00020275,3]
[351886492,1738828336310,-3721.0,0.00020275,3]
[351886493,1738828336320,-593.78,0.00020275,3]
[351886494,1738828336330,-593.78,0.00020275,3]
[351886495,1738828336340,-1382.3,0.00020275,3]
[351886496,1738828336350,-1382.3,0.00020275,3]
[351886497,1738828336359,-1461.4,0.00020275,3]
[351886498,1738828336369,-1461.4,0.00020275,3]
[351886499,1738828336379,-1359.27,0.00020275,3]
[351886500,1738828336389,-1359.27,0.00020275,3]
[351886501,1738828336399,-1887.44,0.00020275,3]
[351886502,1738828336409,-1887.44,0.00020275,3]
[351886503,1738828336418,-1530.95,0.00020275,3]
[351886505,1738828336427,-1530.95,0.00020275,3]
[351886506,1738828336437,-958.23,0.00020275,3]
[351886507,1738828336446,-958.23,0.00020275,3]
[351886508,1738828336456,-1231.08,0.00020275,3]
[351886509,1738828336466,-1231.08,0.00020275,3]
[351886510,1738828336476,-1407.85,0.00020275,3]
[351886511,1738828336486,-1407.85,0.00020275,3]
[351886512,1738828336495,-500.0,0.00020275,3]
[351886513,1738828336505,-500.0,0.00020275,3]
[351886514,1738828336514,-1184.3,0.00020275,3]
[351886515,1738828336524,-1184.3,0.00020275,3]
[351886516,1738828336535,-1634.32,0.00020275,3]
[351886517,1738828336544,-1634.32,0.00020275,3]
[351886518,1738828336554,-1638.97,0.00020275,3]
[351886519,1738828336564,-1638.97,0.00020275,3]
[351886520,1738828336574,-1026.8,0.00020275,3]
[351886521,1738828336585,-1026.8,0.00020275,3]
[351886522,1738828336595,-1498.7,0.00020275,3]
[351886523,1738828336604,-1498.7,0.00020275,3]
[351886524,1738828336615,-1098.98,0.00020275,3]
[351886525,1738828336626,-1098.98,0.00020275,3]
[351886526,1738828336635,-1368.78,0.00020275,3]
[351886527,1738828336645,-1368.78,0.00020275,3]
[351886528,1738828336655,-151.0,0.0002028,2]
[351886529,1738828336664,-151.0,0.0002028,2]
[351886530,1738828336675,-151.0,0.0002028,2]
[351886531,1738828336686,-593.78,0.0002028,3]
[351886532,1738828336696,-593.78,0.0002028,3]
[351886533,1738828336706,-593.78,0.0002028,3]
[351886534,1738828336716,-593.78,0.0002028,3]
[351886535,1738828336726,-593.78,0.0002028,3]
[351886536,1738828336736,-593.78,0.0002028,3]
[351886537,1738828336746,-593.80418325,0.0002028,3]
[351886538,1738828336756,-1382.3,0.0002028,3]
[351886539,1738828336766,-1382.3,0.0002028,3]
[351886540,1738828336776,-1382.3,0.0002028,3]
[351886541,1738828336785,-1382.3,0.0002028,3]
[351886542,1738828336795,-1382.3,0.0002028,3]
[351886543,1738828336804,-1382.3,0.0002028,3]
[351886544,1738828336814,-1382.42,0.0002028,3]
[351886545,1738828336823,-1461.4,0.0002028,3]
[351886546,1738828336832,-1461.4,0.0002028,3]
[351886547,1738828336842,-1461.4,0.0002028,3]
[351886548,1738828336851,-1461.4,0.0002028,3]
[351886549,1738828336860,-1461.4,0.0002028,3]
[351886550,1738828336870,-1461.4,0.0002028,3]
[351886551,1738828336879,-1461.5,0.0002028,3]
[351886552,1738828336888,-1359.27,0.0002028,3]
[351886553,1738828336898,-1359.27,0.0002028,3]
[351886554,1738828336907,-1359.27,0.0002028,3]
[351886555,1738828336918,-1359.27,0.0002028,3]
[351886556,1738828336927,-1359.27,0.0002028,3]
[351886557,1738828336936,-1359.27,0.0002028,3]
[351886558,1738828336945,-1359.41,0.0002028,3]
[351886559,1738828336955,-1887.44,0.0002028,3]
[351886560,1738828336966,-1887.44,0.0002028,3]
[351886561,1738828336975,-1887.44,0.0002028,3]
[351886562,1738828336985,-1887.44,0.0002028,3]
[351886563,1738828336994,-1887.44,0.0002028,3]
[351886564,1738828337003,-1887.44,0.0002028,3]
[351886565,1738828337013,-1887.55196987,0.0002028,3]
[351886566,1738828337022,-1530.95,0.0002028,3]
[351886567,1738828337031,-1530.95,0.0002028,3]
[351886568,1738828337041,-1530.95,0.0002028,3]
[351886569,1738828337050,-1530.95,0.0002028,3]
[351886570,1738828337059,-1530.95,0.0002028,3]
[351886571,1738828337069,-1530.95,0.0002028,3]
[351886572,1738828337082,-1530.97,0.0002028,3]
[351886573,1738828337091,-958.23,0.0002028,3]
[351886574,1738828337101,-958.23,0.0002028,3]
[351886575,1738828337110,-958.23,0.0002028,3]
[351886576,1738828337122,-958.23,0.0002028,3]
[351886577,1738828337131,-958.23,0.0002028,3]
[351886578,1738828337141,-958.23,0.0002028,3]
[351886579,1738828337150,-958.357746,0.0002028,3]
[351886580,1738828337160,-1231.08,0.0002028,3]
[351886581,1738828337170,-1231.08,0.0002028,3]
[351886582,1738828337179,-1231.08,0.0002028,3]
[351886583,1738828337189,-1231.08,0.0002028,3]
[351886584,1738828337198,-1231.08,0.0002028,3]
[351886585,1738828337207,-1231.08,0.0002028,3]
[351886586,1738828337217,-1231.21655595,0.0002028,3]
[351886587,1738828337226,-1407.85,0.0002028,3]
[351886588,1738828337236,-1407.85,0.0002028,3]
[351886589,1738828337245,-1407.85,0.0002028,3]
[351886590,1738828337255,-1407.85,0.0002028,3]
[351886591,1738828337264,-1407.85,0.0002028,3]
[351886592,1738828337273,-1407.85,0.0002028,3]
[351886593,1738828337282,-1407.88625164,0.0002028,3]
[351886594,1738828337291,-500.0,0.0002028,3]
[351886595,1738828337300,-500.0,0.0002028,3]
[351886596,1738828337310,-500.0,0.0002028,3]
[351886597,1738828337319,-500.0,0.0002028,3]
[351886598,1738828337329,-500.0,0.0002028,3]
[351886599,1738828337338,-617.7,0.0002028,3]
[351886600,1738828337348,-1184.3,0.0002028,3]
[351886601,1738828337358,-1184.3,0.0002028,3]
[351886602,1738828337368,-1184.3,0.0002028,3]
[351886603,1738828337377,-1184.3,0.0002028,3]
[351886604,1738828337387,-1184.3,0.0002028,3]
[351886605,1738828337397,-1184.3,0.0002028,3]
[351886606,1738828337406,-1184.47660095,0.0002028,3]
[351886607,1738828337416,-1634.32,0.0002028,3]
[351886608,1738828337425,-1634.32,0.0002028,3]
[351886609,1738828337436,-1634.32,0.0002028,3]
[351886610,1738828337446,-1634.32,0.0002028,3]
[351886611,1738828337456,-1634.32,0.0002028,3]
[351886612,1738828337467,-1634.32,0.0002028,3]
[351886613,1738828337478,-1634.53,0.0002028,3]
[351886614,1738828337489,-1638.97,0.0002028,3]
[351886615,1738828337498,-1638.97,0.0002028,3]
[351886616,1738828337508,-1638.97,0.0002028,3]
[351886617,1738828337517,-1638.97,0.0002028,3]
[351886618,1738828337527,-1638.97,0.0002028,3]
[351886619,1738828337536,-1638.97,0.0002028,3]
[351886620,1738828337546,-1639.16875841,0.0002028,3]
[351886621,1738828337556,-1026.8,0.0002028,3]
[351886622,1738828337566,-1026.8,0.0002028,3]
[351886623,1738828337576,-1026.8,0.0002028,3]
[351886624,1738828337587,-1026.8,0.0002028,3]
[351886625,1738828337597,-1026.8,0.0002028,3]
[351886626,1738828337607,-1026.8,0.0002028,3]
[351886627,1738828337618,-1026.9,0.0002028,3]
[351886628,1738828337628,-151.0,0.0002028,2]
[351886629,1738828337638,-1498.7,0.0002028,3]
[351886630,1738828337647,-233.858178,0.0002028,2]
[351886631,1738828337657,-1498.7,0.0002028,3]
[351886632,1738828337666,-1498.7,0.0002028,3]
[351886633,1738828337676,-1498.7,0.0002028,3]
[351886634,1738828337686,-1498.7,0.0002028,3]
[351886635,1738828337696,-1498.7,0.0002028,3]
[351886636,1738828337706,-1498.76782706,0.0002028,3]
[351886637,1738828337717,-1098.98,0.0002028,3]
[351886638,1738828337727,-1098.98,0.0002028,3]
[351886639,1738828337737,-1098.98,0.0002028,3]
[351886640,1738828337748,-1098.98,0.0002028,3]
[351886641,1738828337758,-1098.98,0.0002028,3]
[351886642,1738828337767,-1098.98,0.0002028,3]
[351886643,1738828337777,-1099.18497647,0.0002028,3]
[351886644,1738828337787,-1368.78,0.0002028,3]
[351886645,1738828337797,-1368.78,0.0002028,3]
[351886646,1738828337807,-1368.78,0.0002028,3]
[351886647,1738828337817,-1368.78,0.0002028,3]
[351886648,1738828337827,-1368.78,0.0002028,3]
[351886649,1738828337836,-1368.78,0.0002028,3]
[351886650,1738828337846,-1368.91242118,0.0002028,3]
[351886651,1738828337856,-151.0,0.00020287,2]
[351886652,1738828337866,-151.0,0.00020287,2]
[351886653,1738828337876,-151.0,0.00020287,2]
[351886654,1738828337886,-151.0,0.00020287,2]
[351886655,1738828337896,-151.0,0.00020287,2]
[351886656,1738828337907,-151.0,0.00020287,2]
[351886657,1738828337918,-151.0,0.00020287,2]
[351886658,1738828337929,-151.0,0.00020287,2]
[351886659,1738828337938,-151.0,0.00020287,2]
[351886660,1738828337948,-151.0,0.00020287,2]
[351886661,1738828337958,-151.0,0.00020287,2]
[351886662,1738828337967,-151.0,0.00020287,2]
[351886663,1738828337977,-151.0,0.00020287,2]
[351886664,1738828337987,-151.0,0.00020287,2]
[351886665,1738828337997,-151.0,0.00020287,2]
[351886666,1738828338006,-500.0,0.00020291,2]
[351886667,1738828338015,-816.92,0.000203,2]
[351886668,1738828338025,-150.0,0.00020302,3]
[351886669,1738828338034,-732.41306449,0.00020302,3]
[351886670,1738828338044,-154.26057304,0.00020302,3]
[351886671,1738828338053,-248.20578561,0.00020302,2]
[351886672,1738828338063,-500.0,0.00020302,3]
[351886673,1738828338073,-3721.0,0.00020302,3]
[351886674,1738828338084,-150.0,0.0002033,3]
[351886675,1738828338093,-500.0,0.0002033,3]
[351886676,1738828338103,-3721.0,0.0002033,3]
[351886677,1738828338112,-197.0204,0.00020344,2]
[351886678,1738828338123,-197.0204,0.00020344,2]
[351886679,1738828338132,-197.0204,0.00020344,2]
[351886680,1738828338142,-197.0204,0.00020344,2]
[351886681,1738828338151,-197.0204,0.00020344,2]
[351886682,1738828338162,-197.0204,0.00020344,2]
[351886683,1738828338171,-151.0,0.00020344,2]
[351886684,1738828338180,-151.0,0.00020344,2]
[351886685,1738828338189,-151.0,0.00020344,2]
[351886686,1738828338199,-1167095.53761901,0.00020344,60]
[351886687,1738828339579,-1043746.8238573,0.00020344,60]
[351886688,1738828339595,-2500.0,0.00020344,120]
[351886689,1738828339608,-150.29021254,0.00020344,2]
[351886690,1738828339623,-209399.96652732,0.00020344,2]
[351886691,1738828339637,-964.57548056,0.00020344,5]
[351886692,1738828339652,-5019.91608533,0.00020344,2]
[351886693,1738828339666,-359.27034488,0.00020344,90]
[351886694,1738828339681,-2241.95433663,0.00020344,14]
[351886695,1738828339694,-246.5060834,0.00020344,2]
[351886696,1738828339705,-162.64703198,0.00020344,2]
[351886697,1738828339717,-861.94074535,0.00020344,5]
[351886698,1738828339733,-1248.41721295,0.00020344,2]
[351886699,1738828339745,-216.30019167,0.00020344,60]
[351886700,1738828339758,-7637.89906736,0.00020344,2]
[351886701,1738828339771,-51999.95623602,0.00020344,30]
[351886702,1738828339785,-154.68374535,0.00020344,120]
[351886703,1738828339797,-22890.67373302,0.00020344,120]
[351886704,1738828339810,-1223.06178881,0.00020344,15]
[351886705,1738828339823,-2210.0095629,0.00020344,10]
[351886706,1738828339837,-180.25350951,0.00020344,2]
[351886707,1738828339850,-155.10771478,0.00020344,120]
[351886708,1738828339862,-1030.47249584,0.00020344,2]
[351886709,1738828339876,-584.65623675,0.00020344,5]
[351886710,1738828339889,-9600.11413979,0.00020344,2]
[351886711,1738828339901,-588.5255122,0.00020344,2]
[351886712,1738828339913,-213606.78297013,0.00020344,120]
[351886713,1738828339925,-9141.67390127,0.00020344,2]
[351886714,1738828339937,-1297.78683907,0.00020344,2]
[351886715,1738828339949,-2240.16425063,0.00020344,10]
[351886716,1738828339961,-1000.0,0.00020344,10]
[351886717,1738828339972,-3384.93188283,0.00020344,2]
[351886718,1738828339981,-20584.14704769,0.00020344,7]
[351886719,1738828339991,-4363.79546629,0.00020344,7]
[351886720,1738828340002,-204.7647857,0.00020344,30]
[351886721,1738828340012,-22554.6273424,0.00020344,2]
[351886722,1738828340023,-12702.3309951,0.00020344,2]
[351886723,1738828340034,-1901.61643891,0.00020344,2]
[351886724,1738828340044,-182.16891157,0.00020344,2]
[351886725,1738828340054,-14690.23526739,0.00020344,3]
[351886726,1738828340063,-643.0,0.00020344,2]
[351886727,1738828340074,-5261.56802708,0.00020344,4]
[351886728,1738828340088,-960.298184,0.00020344,2]
[351886729,1738828340097,-15282.59913957,0.00020344,10]
[351886730,1738828340106,-9544.14951096,0.00020344,2]
[351886731,1738828340115,-176.58655675,0.00020344,120]
[351886732,1738828340126,-500.0,0.00020344,10]
[351886733,1738828340135,-18679.66655984,0.00020344,5]
[351886734,1738828340145,-25088.09099817,0.00020344,2]
[351886735,1738828340155,-12742.16250065,0.00020344,30]
[351886736,1738828340165,-567.18618867,0.00020344,2]
[351886737,1738828340174,-9979.27358309,0.00020344,30]
[351886738,1738828340501,-500.0,0.0002,3]
[351886739,1738828340511,-711.74,0.0002,3]
[351886740,1738828340520,-500.0,0.0002,3]
[351886741,1738828340529,-1292.49,0.0002,3]
[351886742,1738828340538,-500.0,0.0002,3]
[351886743,1738828340548,-500.0,0.0002,3]
[351886744,1738828340557,-711.74,0.0002,3]
[351886745,1738828340567,-500.0,0.0002,3]
[351886746,1738828340576,-921.66,0.0002,3]
[351886747,1738828340586,-1292.49,0.0002,3]
[351886748,1738828340595,-500.0,0.0002,3]
[351886749,1738828340604,-500.0,0.0002,3]
[351886750,1738828340614,-711.74,0.0002,3]
[351886751,1738828340623,-500.0,0.0002,3]
[351886752,1738828340632,-921.66,0.0002,3]
[351886753,1738828340641,-384.9934584,0.0002,3]
[351886754,1738828340656,-331.06704034,0.0002,3]
[351886755,1738828340678,-270.9328437,0.000199,2]
[351886756,1738828340688,-53.3499488,0.0002,3]
[351886757,1738828340699,-523.07955246,0.0002,3]
[351886758,1738828340709,-500.0,0.0002,3]
[351886759,1738828340718,-500.0,0.0002,3]
[351886760,1738828340727,-711.74,0.0002,3]
[351886761,1738828340737,-921.66,0.0002,3]
[351886762,1738828340746,-1292.49,0.0002,3]
[351886763,1738828340756,-500.0,0.0002,3]
[351886764,1738828340765,-500.0,0.0002,3]
[351886765,1738828340774,-711.74,0.0002,3]
[351886766,1738828340784,-139.39779882,0.0002,3]
[351886767,1738828340795,-309.7224929,0.0002,3]
[351886768,1738828340806,-50.87970828,0.0002,3]
[351886769,1738828340815,-921.66,0.0002,3]
[351886770,1738828340824,-500.0,0.0002,3]
[351886771,1738828340833,-500.87138008,0.0002,3]
[351886772,1738828340844,-500.0,0.0002,3]